[Event "POL-chT 2nd League Juniors 2020"]
[Site "Sypniewo"]
[Date "2020.10.25"]
[Round "4.15"]
[White "Skrzypinski, Jan"]
[Black "Zaborski, Igor"]
[Result "1-0"]
[ECO "B07"]
[WhiteElo "1418"]
[BlackElo "1612"]
[Annotator "NA RC"]
[PlyCount "53"]
[EventDate "2020.10.23"]
[EventType "team-tourn"]
[EventCountry "POL"]
[SourceTitle "playchess.com"]
[Source "ChessBase"]
[SourceQuality "1"]
[TimeControl "5400+30"]

1. e4 {[%emt 0:00:00]} d6 {[%emt 0:00:00]} 2. d4 {[%emt 0:01:18]} Nf6 {[%emt 0:00:16]} 3. Nc3 {[%emt 0:00:18]} g6 {[%emt 0:00:25]} 4. Be2 {[%emt 0:00:39]} Bg7 {[%emt 0:00:34]} 5. Be3 {[%emt 0:00:33]} Nbd7 {[%emt 0:00:38]} 6. Qd2 {[%emt 0:00:31]} O-O {[%emt 0:02:47]} 7. h4 {[%emt 0:02:29]} h5 {[%emt 0:02:39]} 8. f3 {[%emt 0:02:35]} c5 {[%emt 0:01:23]} 9. O-O-O {[%emt 0:01:38]} Qa5 {[%emt 0:03:36]} 10. Kb1 {[%emt 0:01:29]} cxd4 {[%emt 0:03:02]} 11. Bxd4 {[%emt 0:00:12]} Nc5 {[%emt 0:02:54]} 12. Nd5 {[%emt 0:00:21]} Qxd2 {[%emt 0:02:44]} 13. Nxe7+ {[%emt 0:00:21]} Kh7 {[%emt 0:00:22]} 14. Rxd2 {[%emt 0:00:09]} Be6 {[%emt 0:03:21]} 15. Bxf6 {[%emt 0:01:09]} Bxf6 {[%emt 0:00:27]} 16. Nd5 {[%emt 0:00:07]} Be5 {[%emt 0:03:06]} 17. Nh3 {[%emt 0:07:19]} Bxd5 {[%emt 0:04:40]} 18. Rxd5 {[%emt 0:00:27]} Na4 {[%emt 0:00:19]} 19. Bb5 {[%emt 0:07:41]} Nxb2 {[%emt 0:05:24]} 20. f4 {[%emt 0:00:53]} Bc3 {[%emt 0:01:07]} 21. Ng5+ {[%emt 0:00:11]} Kg8 {[%emt 0:01:27]} 22. Rh3 {[%emt 0:00:56]} Rac8 {[%emt 0:01:11]} 23. Rxc3 {[%emt 0:05:44]} Rxc3 {[%emt 0:00:49]} 24. Kxb2 {[%emt 0:00:04]} Rg3 {[%emt 0:03:42]} 25. Rxd6 {[%emt 0:00:16]} Rxg2 {[%emt 0:00:20]} 26. Bc4 {[%emt 0:00:23]} Kg7 {[%emt 0:06:27]} 27. Rd7 {[%emt 0:00:19]} 1-0

[Event "POL-chT 2nd League Juniors 2020"]
[Site "Sypniewo"]
[Date "2020.10.25"]
[Round "4.16"]
[White "Rozek, Michal"]
[Black "Kaczmarek, Jan"]
[Result "1-0"]
[ECO "B27"]
[WhiteElo "1442"]
[BlackElo "1229"]
[Annotator "NA RC"]
[PlyCount "23"]
[EventDate "2020.10.23"]
[EventType "team-tourn"]
[EventCountry "POL"]
[SourceTitle "playchess.com"]
[Source "ChessBase"]
[SourceQuality "1"]
[TimeControl "5400+30"]

1. e4 {[%emt 0:00:00]} c5 {[%emt 0:00:00]} 2. Nf3 {[%emt 0:00:00]} g6 {[%emt 0:00:00]} 3. d4 {[%emt 0:00:00]} cxd4 {[%emt 0:00:13]} 4. Qxd4 {[%emt 0:00:12]} Nf6 {[%emt 0:00:23]} 5. Nc3 {[%emt 0:00:38]} Nc6 {[%emt 0:00:36]} 6. Qa4 {[%emt 0:00:16]} d5 {[%emt 0:04:25]} 7. e5 {[%emt 0:11:37]} Ng4 {[%emt 0:03:06]} 8. Bb5 {[%emt 0:08:01]} Bd7 {[%emt 0:03:11]} 9. e6 {[%emt 0:04:56]} Bxe6 {[%emt 0:01:31]} 10. Nd4 {[%emt 0:02:47]} Rc8 {[%emt 0:01:32]} 11. Nxe6 {[%emt 0:01:27]} fxe6 {[%emt 0:00:18]} 12. Qxg4 {[%emt 0:00:20]} 1-0

[Event "POL-chT 2nd League Juniors 2020"]
[Site "Sypniewo"]
[Date "2020.10.25"]
[Round "4.17"]
[White "Niemier, Martyna"]
[Black "Hertlein, Irena"]
[Result "0-1"]
[ECO "E12"]
[WhiteElo "1235"]
[BlackElo "1893"]
[Annotator "NA RC"]
[PlyCount "74"]
[EventDate "2020.10.23"]
[EventType "team-tourn"]
[EventCountry "POL"]
[SourceTitle "playchess.com"]
[Source "ChessBase"]
[SourceQuality "1"]
[TimeControl "5400+30"]

{[%evp 17,73,-191,32767,32767,-186,-256,32767,32767,-306,32767,32767,-514,-474,-555,-537,-605,-623,-645,-607,-806,-833,-834,-835,-847,32767,32767,32767,32767,32767,32767,-641,-613,-667,-618,-641,-655,-675,32767,32767,32767,32767,32767,32767,32767,32767,32767,-898,-898,-954,-987,-1113,-2070,-4148,-5808,-29974,-1161,-1912,-29999]} 1. d4 {[%emt 0:00:00]} Nf6 {[%emt 0:00:00]} 2. c4 {[%emt 0:00:00]} e6 {[%emt 0:00:00]} 3. Nf3 {[%emt 0:00:00]} b6 {[%emt 0:00:05]} 4. Bg5 {[%emt 0:00:08]} Bb7 {[%emt 0:00:49]} 5. e3 {[%emt 0:00:22]} Bb4+ {[%emt 0:01:03]} 6. Nbd2 {[%emt 0:00:34] E12: Queen's Indian: Unusual White 4th moves, 4 a3, 4 Nc3 Bb7 5 a3 and 4 Nc3 Bb7 .} h6 {[%emt 0:05:38]} 7. Bh4 {[%emt 0:00:53]} g5 {[%emt 0:10:04]} 8. Bg3 {[%emt 0:00:18]} g4 {[%emt 0:00:23]} 9. Ne5 {[%emt 0:06:38]} Ne4 {[%emt 0:00:14]} 10. Qxg4 {[%emt 0:03:19]} Bxd2+ {[%emt 0:02:36]} 11. Kd1 {[%emt 0:00:13]} (11. Ke2 {was called for.} Qg5 12. Bf4 Qxg4+ 13. Nxg4) 11... Qg5 {[%emt 0:00:17]} 12. a3 {[%emt 0:06:40] [#]} Bxe3 $1 $146 {[%emt 0:28:44]} ({Predecessor:} 12... d6 13. Bh4 dxe5 {0-1 (13) Jarod,B-Shabalov,A (2570) Philadelphia 1996}) 13. Qxg5 {[%emt 0:11:23]} Bxg5 {[%emt 0:00:19]} 14. Be2 {[%emt 0:02:12]} d6 {[%emt 0:02:38]} 15. Nd3 {[%emt 0:01:48]} Bf6 {[%emt 0:03:21]} 16. Bh5 {[%emt 0:02:07]} Bxd4 {[%emt 0:02:08]} 17. Rb1 {[%emt 0:00:39]} Nd7 {[%emt 0:04:57]} 18. f3 {[%emt 0:01:02]} Nef6 {[%emt 0:01:07]} 19. Bg4 {[%emt 0:00:53]} Nxg4 {[%emt 0:00:15]} 20. fxg4 {[%emt 0:00:08]} Bxg2 {[%emt 0:00:16]} 21. Re1 {[%emt 0:00:13]} Bf3+ {[%emt 0:00:22]} 22. Kd2 {[%emt 0:00:14]} Bxg4 {[%emt 0:00:11]} 23. Re4 {[%emt 0:00:30]} Bf5 {[%emt 0:06:18]} 24. Rxd4 {[%emt 0:00:28]} Nc5 {[%emt 0:00:19]} 25. Rf1 {[%emt 0:02:29]} Bxd3 {[%emt 0:01:34]} 26. Rxd3 {[%emt 0:00:11]} Nxd3 {[%emt 0:00:08]} 27. Kxd3 {[%emt 0:00:05]} f5 {[%emt 0:00:22]} 28. b4 {[%emt 0:00:15]} Kd7 {[%emt 0:00:25]} 29. Rc1 {[%emt 0:00:19]} e5 {[%emt 0:01:32]} 30. c5 {[%emt 0:00:11]} bxc5 {[%emt 0:00:25]} 31. bxc5 {[%emt 0:00:09]} Rab8 {[%emt 0:01:32]} 32. Kc4 {[%emt 0:00:54]} f4 {[%emt 0:02:21]} 33. Bf2 {[%emt 0:00:22]} Rb2 {[%emt 0:00:40]} 34. Bg1 {[%emt 0:00:04]} Ke6 {[%emt 0:00:32]} 35. cxd6 {[%emt 0:00:15]} cxd6 {[%emt 0:00:09]} 36. Kd3 {[%emt 0:00:13]} Rb3+ $19 {[%emt 0:02:49]} 37. Ke4 {[%emt 0:00:18]} d5# {[%emt 0:00:16]} 0-1

[Event "POL-chT 2nd League Juniors 2020"]
[Site "Sypniewo"]
[Date "2020.10.25"]
[Round "4.18"]
[White "Lajdamik, Anna"]
[Black "Lewicka, Joanna"]
[Result "0-1"]
[ECO "C54"]
[WhiteElo "1292"]
[BlackElo "1243"]
[Annotator "NA RC"]
[PlyCount "62"]
[EventDate "2020.10.23"]
[EventType "team-tourn"]
[EventCountry "POL"]
[SourceTitle "playchess.com"]
[Source "ChessBase"]
[SourceQuality "1"]
[TimeControl "5400+30"]

1. e4 {[%emt 0:00:00]} e5 {[%emt 0:00:00]} 2. Nf3 {[%emt 0:00:07]} Nc6 {[%emt 0:00:00]} 3. Bc4 {[%emt 0:00:26]} Bc5 {[%emt 0:00:00]} 4. c3 {[%emt 0:00:34]} Nf6 {[%emt 0:00:09]} 5. d4 {[%emt 0:00:44]} exd4 {[%emt 0:00:08]} 6. O-O {[%emt 0:00:53]} O-O {[%emt 0:04:06]} 7. cxd4 {[%emt 0:05:18]} Bb6 {[%emt 0:01:59]} 8. Bg5 {[%emt 0:04:18]} d6 {[%emt 0:01:49]} 9. h3 {[%emt 0:02:57]} h6 {[%emt 0:05:57]} 10. Bh4 {[%emt 0:03:21]} g5 {[%emt 0:01:45]} 11. Nxg5 {[%emt 0:34:49]} Nxe4 {[%emt 0:05:03]} 12. Nf3 {[%emt 0:01:49]} Qd7 {[%emt 0:05:16]} 13. Re1 {[%emt 0:13:15]} d5 14. Bb5 {[%emt 0:00:21]} a6 {[%emt 0:02:36]} 15. Ne5 {[%emt 0:02:25]} Qd6 {[%emt 0:02:09]} 16. Bxc6 {[%emt 0:00:25]} bxc6 {[%emt 0:00:10]} 17. f3 {[%emt 0:01:13]} Qxe5 {[%emt 0:01:02]} 18. fxe4 {[%emt 0:01:29]} Bxd4+ {[%emt 0:03:59]} 19. Kh1 {[%emt 0:00:30]} Bxb2 {[%emt 0:01:13]} 20. exd5 {[%emt 0:00:32]} Qxd5 {[%emt 0:00:10]} 21. Qc2 {[%emt 0:02:42]} Bxa1 {[%emt 0:01:42]} 22. Re3 {[%emt 0:00:36]} Bg7 {[%emt 0:06:15]} 23. Nc3 {[%emt 0:01:57]} Qf5 {[%emt 0:03:24]} 24. Qe2 {[%emt 0:01:24]} Be6 {[%emt 0:01:50]} 25. Rf3 {[%emt 0:02:27]} Qc5 {[%emt 0:06:44]} 26. Ne4 {[%emt 0:01:11]} Qc4 {[%emt 0:03:35]} 27. Qe3 {[%emt 0:01:43]} Qd4 {[%emt 0:04:34]} 28. Qxd4 {[%emt 0:02:57]} Bxd4 {[%emt 0:00:10]} 29. Rg3+ {[%emt 0:00:05]} Kh7 {[%emt 0:03:25]} 30. Nf6+ {[%emt 0:02:18]} Bxf6 {[%emt 0:00:27]} 31. Bxf6 {[%emt 0:00:09]} Rg8 {[%emt 0:00:11]} 0-1

[Event "POL-chT 2nd League Juniors 2020"]
[Site "Sypniewo"]
[Date "2020.10.25"]
[Round "4.19"]
[White "Jedrusik, Adam"]
[Black "Ursnik, Patryk"]
[Result "1/2-1/2"]
[ECO "D00"]
[WhiteElo "1891"]
[BlackElo "1645"]
[Annotator "NA RC"]
[PlyCount "85"]
[EventDate "2020.10.23"]
[EventType "team-tourn"]
[EventCountry "POL"]
[SourceTitle "playchess.com"]
[Source "ChessBase"]
[SourceQuality "1"]
[TimeControl "5400+30"]

{[%evp 16,84,-16,32767,32767,32767,32767,32767,32767,2,14,-15,-9,-12,-10,-13,0,32767,32767,32767,9,0,0,0,13,12,1,0,18,20,16,12,14,0,0,0,17,20,39,29,44,47,57,27,47,90,212,184,318,170,373,192,530,58,83,8,27,0,0,0,0,0,0,0,0,32767,0,32767,32767,50,45]} 1. d4 {[%emt 0:01:51]} d5 {[%emt 0:00:00]} 2. Bf4 {[%emt 0:00:15]} Nf6 {[%emt 0:00:13]} 3. e3 {[%emt 0:00:18]} c5 {[%emt 0:01:40]} 4. c3 {[%emt 0:00:03]} Qb6 {[%emt 0:00:29]} 5. Qb3 {[%emt 0:00:12]} c4 {[%emt 0:01:55]} 6. Qc2 {[%emt 0:08:20] D00: 1 d4 d5: Unusual lines.} g6 {[%emt 0:03:38]} 7. Nd2 {[%emt 0:00:04]} Bf5 {[%emt 0:01:13]} 8. Qc1 {[%emt 0:00:01]} Nc6 {[%emt 0:05:28]} 9. Ngf3 {[%emt 0:00:05]} Bg7 {[%emt 0:01:06]} 10. Be2 {[%emt 0:00:13]} O-O {[%emt 0:00:59]} 11. O-O {[%emt 0:00:31]} Rfc8 {[%emt 0:03:29]} 12. h3 {[%emt 0:07:03]} Qd8 {[%emt 0:04:23]} 13. Bd1 {[%emt 0:00:43]} b5 {[%emt 0:03:36]} 14. Bc2 {[%emt 0:01:38]} a5 {[%emt 0:04:03] [#]} 15. Re1 $146 {[%emt 0:00:36]} ({Predecessor:} 15. Bxf5 gxf5 16. Ne5 Qf8 17. Qc2 e6 18. Bh2 Kh8 19. Rae1 Nxe5 20. Bxe5 Ne4 21. Bh2 Nxd2 22. Qxd2 {½-½ (29) Spornberger,A (2288)-Prusikin,M (2530) Austria 2017}) 15... Ne4 {[%emt 0:13:34]} 16. Nxe4 {[%emt 0:08:52]} Bxe4 {[%emt 0:01:06]} 17. Bxe4 {[%emt 0:06:29]} dxe4 {[%emt 0:00:09]} 18. Nd2 {[%emt 0:00:13]} f5 {[%emt 0:00:09]} 19. f3 {[%emt 0:00:45]} exf3 {[%emt 0:00:31]} 20. Nxf3 {[%emt 0:00:08]} Qd5 {[%emt 0:07:57]} 21. Qc2 {[%emt 0:01:47]} e5 {[%emt 0:03:19]} 22. dxe5 {[%emt 0:00:32]} Nxe5 {[%emt 0:03:02]} 23. Bxe5 {[%emt 0:03:45]} Bxe5 {[%emt 0:00:32]} 24. e4 {[%emt 0:00:55]} Qc5+ {[%emt 0:02:44]} 25. Kh1 {[%emt 0:02:12]} Bg3 {[%emt 0:01:07]} 26. Re2 {[%emt 0:00:40]} fxe4 {[%emt 0:00:48]} 27. Qxe4 {[%emt 0:00:29]} Re8 {[%emt 0:00:48]} 28. Qxe8+ {[%emt 0:00:29]} Rxe8 {[%emt 0:00:07]} 29. Rxe8+ {[%emt 0:00:01]} Kf7 {[%emt 0:03:04]} 30. Rd8 {[%emt 0:01:35]} g5 $2 {[%emt 0:01:00]} (30... b4 $14) 31. Rad1 {[%emt 0:00:41]} g4 {[%emt 0:00:58]} (31... Qe3 $142) 32. R8d5 {[%emt 0:01:34]} (32. hxg4 $142 Qe3 33. R1d7+ Kf6 34. Rf8+ (34. Rxh7 Qc1+ {[%mdl 64] Double Attack} 35. Ng1 Bf2 $11) 34... Kg6 35. Rg8+ Kf6 36. g5+ (36. Rxh7 Qc1+ 37. Ng1 Bf2 $11) 36... Kf5 37. Rf8+ (37. Rxh7 Qc1+ 38. Ng1 Kg4 $11) 37... Kg4 38. Rd2 (38. Rxh7 Qc1+ 39. Ng1 Bd6 $11)) 32... Qc8 $2 {[%emt 0:06:16]} (32... Qe3) 33. Ng5+ {[%emt 0:01:02]} Kg6 $2 {[%emt 0:00:38]} (33... Kg7 $16 {is more resistant.} 34. R1d4 (34. Rxb5 Qe8 $11) 34... gxh3 35. Nxh3 h6 36. Rxb5 Qe6) 34. hxg4 $2 {[%emt 0:03:15]} (34. Rd8 $18 Qf5 35. Rg8+ Kf6 36. Rf8+ {[%mdl 64] Skewer} Kxg5 37. Rxf5+ Kxf5 38. Rd5+ {[%mdl 64] Double Attack} Ke4 39. Rxb5) 34... Qxg4 {[%emt 0:02:24]} 35. Nh3 {[%emt 0:00:08]} (35. Nf3 $16 Qf4 36. Rg5+ (36. Rxb5 Qh6+ 37. Kg1 Qe3+ 38. Kh1 Qh6+ 39. Kg1 Qe3+ 40. Kh1 Qh6+ $11) 36... Kf6 37. a3 (37. Rxb5 Qh6+ 38. Kg1 Qe3+ 39. Kh1 Qh6+ 40. Kg1 Qe3+ 41. Kh1 Qh6+ $11)) 35... h6 {[%emt 0:02:01]} 36. R5d4 {[%emt 0:09:20]} Qe2 {[%emt 0:01:10]} 37. R4d2 {[%emt 0:03:39]} Qg4 {[%emt 0:00:24]} 38. Rd8 {[%emt 0:00:57]} Qe2 {[%emt 0:02:13]} 39. R8d2 {[%emt 0:08:40]} Qg4 {[%emt 0:02:27]} 40. Rf1 {[%emt 0:02:33]} Bc7 {[%emt 0:02:14]} 41. Rdf2 {[%emt 0:00:37]} Qg3 {[%emt 0:04:46]} 42. Rf6+ {[%emt 0:04:22]} Kg7 $14 {[%emt 0:03:15]} 43. Rf7+ {[%emt 0:00:38]} 1/2-1/2

[Event "POL-chT 2nd League Juniors 2020"]
[Site "Sypniewo"]
[Date "2020.10.25"]
[Round "4.20"]
[White "Bialik, Nikodem"]
[Black "Bujalski, Mateusz"]
[Result "0-1"]
[ECO "C42"]
[WhiteElo "1547"]
[BlackElo "1865"]
[Annotator "NA RC"]
[PlyCount "70"]
[EventDate "2020.10.23"]
[EventType "team-tourn"]
[EventCountry "POL"]
[SourceTitle "playchess.com"]
[Source "ChessBase"]
[SourceQuality "1"]
[TimeControl "5400+30"]

{[%evp 8,70,23,32767,32767,-15,-9,32767,-12,32767,32767,32767,32767,32767,10,19,85,87,32767,32767,32767,159,143,32767,149,139,154,32767,32767,32767,169,175,475,159,166,129,154,32767,131,32767,32767,117,32767,32767,32767,68,110,64,95,72,68,116,77,93,73,79,87,-720,-787,-711,-795,-1023,-1129,-1231,-1179]} 1. e4 {[%emt 0:00:00]} e5 {[%emt 0:02:42]} 2. Nf3 {[%emt 0:00:12]} Nf6 {[%emt 0:00:06]} 3. Nc3 {[%emt 0:00:34]} Bb4 {[%emt 0:00:07]} 4. Bc4 {[%emt 0:05:40]} d6 {[%emt 0:00:45]} 5. d3 {[%emt 0:00:41]} O-O {[%emt 0:00:28]} 6. Bg5 {[%emt 0:01:46] C42: Petroff Defence: 3 Nxe5 and unusual White 3rd moves.} h6 {[%emt 0:00:51]} 7. Bh4 {[%emt 0:02:10]} c6 {[%emt 0:00:54]} 8. O-O {[%emt 0:01:11]} Bg4 {[%emt 0:00:10]} 9. h3 {[%emt 0:01:24]} Be6 {[%emt 0:02:33]} 10. Bb3 {[%emt 0:01:59] [#]} Bxb3 $146 {[%emt 0:00:22]} ({Predecessor:} 10... Nbd7 11. a3 Ba5 12. Bxe6 fxe6 13. b4 Bc7 14. d4 d5 15. Qe2 Re8 16. Rad1 Qe7 {½-½ (30) Jacob,B-Spengler,H Fischbach 1993}) 11. axb3 {[%emt 0:00:31]} g5 {[%emt 0:00:48]} (11... Nbd7 $11 {keeps the balance.}) 12. Bg3 {[%emt 0:12:55]} Nh5 {[%emt 0:00:34]} 13. Ne2 {[%emt 0:00:47]} Nf4 {[%emt 0:00:11]} 14. Bxf4 {[%emt 0:03:14]} gxf4 {[%emt 0:00:50]} 15. c3 {[%emt 0:00:40]} Ba5 {[%emt 0:01:22]} 16. g3 {[%emt 0:00:58]} f5 {[%emt 0:02:56]} 17. gxf4 {[%emt 0:11:56]} fxe4 {[%emt 0:00:25]} 18. dxe4 {[%emt 0:00:11]} Bb6 {[%emt 0:01:36]} 19. f5 {[%emt 0:01:40]} Qf6 $2 {[%emt 0:02:43]} (19... Kh7 20. Kh1 Rg8) 20. c4 $2 {[%emt 0:04:44]} (20. Kh1 $18) 20... Nd7 {[%emt 0:00:21]} 21. Kh2 {[%emt 0:00:12]} Kh7 {[%emt 0:00:19]} 22. Ng3 {[%emt 0:00:56]} Rg8 {[%emt 0:03:44]} 23. b4 {[%emt 0:03:13]} Qe7 {[%emt 0:02:04]} 24. Ra3 {[%emt 0:01:25]} Nf6 {[%emt 0:00:29]} 25. Rd3 {[%emt 0:02:06]} Rad8 {[%emt 0:00:29]} 26. Qe2 {[%emt 0:00:53]} Bc7 {[%emt 0:01:57]} 27. Nh4 {[%emt 0:03:17]} (27. b5 $16) 27... Ng4+ {[%emt 0:02:46]} 28. hxg4 {[%emt 0:03:50]} Qxh4+ {[%emt 0:00:09] Double Attack [#]} 29. Kg2 $1 {[%emt 0:00:10]} Rxg4 {[%emt 0:00:25]} 30. Rh1 {[%emt 0:01:39]} Qg5 {[%emt 0:00:07] [#]} 31. Kf1 $1 {[%emt 0:01:12]} Rg8 {[%emt 0:00:18]} 32. Rh5 $2 {[%emt 0:01:18] [#]} (32. Qd1 $16) 32... Qxh5 $1 {[%emt 0:00:05]} 33. Ke1 {[%emt 0:02:01]} Qf7 {[%emt 0:00:35]} 34. Qd2 {[%emt 0:01:36]} Qxc4 {[%emt 0:00:42]} 35. f6 $19 {[%emt 0:00:48]} Rf4 {[%emt 0:02:38]} 0-1

[Event "POL-chT 2nd League Juniors 2020"]
[Site "Sypniewo"]
[Date "2020.10.25"]
[Round "4.22"]
[White "Wojs, Alicja"]
[Black "Leszczewicz, Karol"]
[Result "1-0"]
[ECO "B34"]
[WhiteElo "1392"]
[BlackElo "1267"]
[Annotator "NA RC"]
[PlyCount "91"]
[EventDate "2020.10.23"]
[EventType "team-tourn"]
[EventCountry "POL"]
[SourceTitle "playchess.com"]
[Source "ChessBase"]
[SourceQuality "1"]
[TimeControl "5400+30"]

1. e4 {[%emt 0:00:00]} c5 {[%emt 0:00:00]} 2. Nf3 {[%emt 0:00:00]} Nc6 {[%emt 0:00:11]} 3. d4 {[%emt 0:00:19]} cxd4 {[%emt 0:00:18]} 4. Nxd4 {[%emt 0:00:15]} g6 {[%emt 0:00:24]} 5. Nc3 {[%emt 0:00:59]} Bg7 {[%emt 0:00:17]} 6. Be3 {[%emt 0:00:29]} Nf6 {[%emt 0:00:54]} 7. f3 {[%emt 0:01:03]} d6 {[%emt 0:01:11]} 8. Qd2 {[%emt 0:00:53]} O-O {[%emt 0:01:48]} 9. g4 {[%emt 0:01:16]} Be6 {[%emt 0:02:47]} 10. O-O-O {[%emt 0:01:27]} Nxd4 {[%emt 0:04:12]} 11. Bxd4 {[%emt 0:00:55]} Qa5 {[%emt 0:02:26]} 12. Kb1 {[%emt 0:02:41]} Rfc8 {[%emt 0:05:36]} 13. h4 {[%emt 0:03:19]} Rab8 {[%emt 0:11:36]} 14. Bxf6 {[%emt 0:07:14]} Bxf6 {[%emt 0:00:39]} 15. Nd5 {[%emt 0:00:15]} Qxd2 {[%emt 0:01:50]} 16. Nxf6+ {[%emt 0:00:36]} exf6 {[%emt 0:00:10]} 17. Rxd2 {[%emt 0:00:18]} Rc6 {[%emt 0:09:03]} 18. Be2 {[%emt 0:03:31]} Rbc8 {[%emt 0:20:12]} 19. Rhd1 {[%emt 0:10:42]} Kg7 {[%emt 0:02:13]} 20. c3 {[%emt 0:00:52]} Rd8 {[%emt 0:01:16]} 21. Rd4 {[%emt 0:01:35]} a6 {[%emt 0:05:24]} 22. f4 {[%emt 0:05:20]} f5 {[%emt 0:05:43]} 23. gxf5 {[%emt 0:01:05]} gxf5 {[%emt 0:00:16]} 24. e5 {[%emt 0:00:24]} d5 {[%emt 0:00:37]} 25. c4 {[%emt 0:00:23]} Rc5 {[%emt 0:03:15]} 26. Bf3 {[%emt 0:00:11]} f6 {[%emt 0:03:57]} 27. cxd5 {[%emt 0:00:32]} fxe5 {[%emt 0:00:06]} 28. fxe5 {[%emt 0:00:11]} Bc8 {[%emt 0:01:46]} 29. Rg1+ {[%emt 0:01:24]} Kf7 {[%emt 0:00:24]} 30. Bh5+ {[%emt 0:00:36]} Kf8 {[%emt 0:00:20]} 31. Bf3 {[%emt 0:01:15]} Kf7 {[%emt 0:01:25]} 32. h5 {[%emt 0:01:06]} a5 {[%emt 0:00:39]} 33. h6 {[%emt 0:00:13]} Rg8 {[%emt 0:01:28]} 34. e6+ {[%emt 0:00:33]} Kf8 {[%emt 0:00:45]} 35. e7+ {[%emt 0:00:08]} Kf7 {[%emt 0:01:50]} 36. Rxg8 {[%emt 0:00:09]} Kxe7 {[%emt 0:00:18]} 37. Rg7+ {[%emt 0:00:13]} Kf8 {[%emt 0:00:08]} 38. Rxh7 {[%emt 0:00:06]} Kg8 {[%emt 0:00:04]} 39. Rg7+ {[%emt 0:00:13]} Kh8 {[%emt 0:00:06]} 40. d6 {[%emt 0:00:10]} Bd7 {[%emt 0:01:28]} 41. Rxd7 {[%emt 0:00:09]} Rc8 {[%emt 0:00:05]} 42. Re7 {[%emt 0:00:06]} Rg8 {[%emt 0:00:12]} 43. d7 {[%emt 0:00:11]} Rg1+ {[%emt 0:00:04]} 44. Kc2 {[%emt 0:00:05]} Rc1+ {[%emt 0:00:16]} 45. Kxc1 {[%emt 0:00:05]} b5 {[%emt 0:00:05]} 46. d8=Q# {[%emt 0:00:07]} 1-0

[Event "POL-chT 2nd League Juniors 2020"]
[Site "Sypniewo"]
[Date "2020.10.25"]
[Round "4.23"]
[White "Tarka, Aleksandra"]
[Black "Lach, Alicja"]
[Result "1-0"]
[ECO "B34"]
[WhiteElo "1676"]
[BlackElo "1161"]
[Annotator "NA RC"]
[PlyCount "119"]
[EventDate "2020.10.23"]
[EventType "team-tourn"]
[EventCountry "POL"]
[SourceTitle "playchess.com"]
[Source "ChessBase"]
[SourceQuality "1"]
[TimeControl "5400+30"]

1. e4 {[%emt 0:00:00]} c5 {[%emt 0:00:00]} 2. Nf3 {[%emt 0:00:00]} Nc6 {[%emt 0:00:00]} 3. d4 {[%emt 0:00:00]} cxd4 {[%emt 0:00:00]} 4. Nxd4 {[%emt 0:00:05]} g6 {[%emt 0:00:00]} 5. Nc3 {[%emt 0:00:26]} Bg7 {[%emt 0:00:00]} 6. Nb3 {[%emt 0:00:44]} Nf6 {[%emt 0:00:53]} 7. Be2 {[%emt 0:00:48]} O-O {[%emt 0:00:19]} 8. O-O {[%emt 0:00:26]} d6 {[%emt 0:00:17]} 9. Re1 {[%emt 0:01:58]} a6 {[%emt 0:02:59]} 10. Bf1 {[%emt 0:06:36]} b5 {[%emt 0:03:33]} 11. Bg5 {[%emt 0:18:33]} Re8 {[%emt 0:08:13]} 12. Rb1 {[%emt 0:17:02]} Be6 {[%emt 0:10:41]} 13. Nd5 {[%emt 0:10:52]} Bxd5 {[%emt 0:00:42]} 14. exd5 {[%emt 0:00:08]} Nb4 {[%emt 0:02:56]} 15. Bxf6 {[%emt 0:00:43]} Bxf6 {[%emt 0:00:16]} 16. a3 {[%emt 0:05:10]} Na2 {[%emt 0:01:34]} 17. Re3 {[%emt 0:10:55]} b4 {[%emt 0:01:05]} 18. Ra1 {[%emt 0:05:24]} bxa3 {[%emt 0:00:33]} 19. Rxa2 {[%emt 0:00:56]} Bxb2 {[%emt 0:00:56]} 20. Nd2 {[%emt 0:03:54]} a5 {[%emt 0:06:48]} 21. Nc4 {[%emt 0:01:45]} Rb8 {[%emt 0:01:36]} 22. Nxb2 {[%emt 0:02:29]} axb2 {[%emt 0:00:10]} 23. Qb1 {[%emt 0:00:50]} Qc7 {[%emt 0:01:54]} 24. Rxb2 {[%emt 0:00:46]} Ra8 {[%emt 0:00:23]} 25. Rb7 {[%emt 0:01:54]} Qc5 {[%emt 0:00:49]} 26. Rexe7 {[%emt 0:04:38]} Rxe7 {[%emt 0:00:16]} 27. Rxe7 {[%emt 0:00:08]} Qxd5 {[%emt 0:00:10]} 28. Qb7 {[%emt 0:01:24]} Qxb7 {[%emt 0:00:27]} 29. Rxb7 {[%emt 0:00:03]} a4 {[%emt 0:00:09]} 30. Rb1 {[%emt 0:00:26]} a3 {[%emt 0:00:27]} 31. Bc4 {[%emt 0:02:07]} Ra7 {[%emt 0:01:04]} 32. Kf1 {[%emt 0:00:29]} Kg7 {[%emt 0:00:24]} 33. Ke2 {[%emt 0:00:39]} Kf6 {[%emt 0:00:18]} 34. Kd3 {[%emt 0:00:46]} Ke5 {[%emt 0:00:09]} 35. Re1+ {[%emt 0:01:25]} Kf6 {[%emt 0:01:22]} 36. Kc3 {[%emt 0:01:03]} Ra5 {[%emt 0:00:56]} 37. Kb4 {[%emt 0:00:57]} Ra7 {[%emt 0:00:17]} 38. Ra1 {[%emt 0:00:48]} Ke5 {[%emt 0:00:13]} 39. Rxa3 {[%emt 0:00:42]} Rb7+ {[%emt 0:00:11]} 40. Kc3 {[%emt 0:00:49]} Rc7 {[%emt 0:00:21]} 41. Kd3 {[%emt 0:00:29]} d5 {[%emt 0:01:02]} 42. Bb3 {[%emt 0:00:27]} Rc6 {[%emt 0:00:45]} 43. Ra5 {[%emt 0:00:24]} Rd6 {[%emt 0:00:20]} 44. c4 {[%emt 0:00:35]} Kf6 {[%emt 0:00:42]} 45. Rxd5 {[%emt 0:00:40]} Ra6 {[%emt 0:00:17]} 46. c5 {[%emt 0:00:32]} Ra3 {[%emt 0:00:08]} 47. Kc3 {[%emt 0:00:44]} Ra1 {[%emt 0:00:15]} 48. Rd1 {[%emt 0:00:33]} Ra5 {[%emt 0:00:27]} 49. Kb4 {[%emt 0:00:10]} Ra8 {[%emt 0:00:08]} 50. c6 {[%emt 0:00:29]} Re8 {[%emt 0:00:28]} 51. Kc5 {[%emt 0:00:30]} Rb8 {[%emt 0:00:31]} 52. Bc4 {[%emt 0:00:33]} Kg7 {[%emt 0:01:09]} 53. c7 {[%emt 0:00:20]} Re8 {[%emt 0:00:32]} 54. Rd8 {[%emt 0:00:25]} Rxd8 {[%emt 0:01:00]} 55. cxd8=Q {[%emt 0:00:09]} Kh6 {[%emt 0:00:14]} 56. g4 {[%emt 0:00:48]} Kg7 {[%emt 0:00:14]} 57. g5 {[%emt 0:00:29]} h5 {[%emt 0:00:06]} 58. Qf6+ {[%emt 0:00:11]} Kh7 {[%emt 0:00:05]} 59. Qxf7+ {[%emt 0:00:08]} Kh8 {[%emt 0:00:03]} 60. Qg8# {[%emt 0:00:08]} 1-0